{"text_format":"1","workbook":"xlsx","n_sheets":4,"sheets":["Curricula Inputs","Curricula Tool","Report","Sheet4"],"not_rendered":{"charts":1,"images":3,"macros":1,"external_links":1,"defined_names":5,"comments":0,"pivot_tables":0},"unopened":[],"bounds":{"document_bytes":16777216,"sheet_cells":100000,"rows_first":2000,"rows_last":500,"rows_between":2000,"halvings":0,"cell_chars":16384,"cell_head_chars":4096},"cells_cut":0,"cells_raw":0,"read":"whole","date_system":"1900"}

{"sheet":"Curricula Inputs","index":0,"n_rows":5,"n_cols":4,"rows_kept":5,"cut":false,"hidden":false,"merged":[[3,1,3,2]]}
[]
[null,null,null,false]
[]
["Standards","Standards",null,{"$f":"Report!J11","v":false}]
[{"$f":"IFERROR(_xlfn.IFS(B4=\"Standards\",\"Standards\",B4=\"Textbook Lessons\",\"Lessons\",B4=\"Lesson Plans\", \"Lessons\", B4=\"Other Curricula Resources\", \"Resources\"),\"Resources\")","v":"Standards"},"Number","Description or Title","(Click Here to Select Type of Curricula)"]

{"sheet":"Curricula Tool","index":1,"n_rows":126,"n_cols":9,"rows_kept":126,"cut":false,"hidden":false,"merged":[[7,1,7,4],[17,1,17,4],[17,5,17,7],[9,1,9,4],[9,5,9,7],[20,5,20,6],[11,1,11,4],[8,1,8,4],[10,1,10,4],[12,1,12,4],[13,1,13,4],[14,1,14,4],[15,1,15,4],[16,1,16,4],[18,1,18,4],[19,1,19,4]]}
[]
[]
[null,null,null,null,null,null,null,null,"Aug"]
[null,null,null,null,1,{"$f":"INDEX(I3:I14,E4)","v":"Aug"},null,null,"Sept"]
[null,null,null,null,1,{"$f":"INDEX(Curricula_Inputs,E5)","v":0},null,null,"Oct"]
[null,null,"1-3",null,{"$f":"IFERROR(VLOOKUP(F5,'Curricula Inputs'!B6:C392,2,FALSE),\"\")","v":""},null,null,null,"Nov"]
[null,null,null,null,null,null,null,null,"Dec"]
[null,"Criterion 1: Informed by Mastery Data",null,null,null,"Check If True","Weight","Total","Jan"]
[null,"1. At least 80% of students have not demonstrated mastery of this skill or content",null,null,null,null,4,{"$f":"IF(F9=TRUE,G9,\"\")","v":""},"Feb"]
[null,"Criterion 2: Necessary for Grade Level Progression",null,null,null,null,null,null,"March"]
[null,"2. This skill or content will be assessed on state achievement tests (and/or college prep test) this year",null,null,null,null,5,{"$f":"IF(F11=TRUE,G11,\"\")","v":""},"May"]
[null,"3. My district has a list of essential standards that explicitly includes this skill or content",null,null,null,null,5,{"$f":"IF(F12=TRUE,G12,\"\")","v":""},"April"]
[null,"4. Teachers in the next grade level expect mastery of this skill or content and will likely not teach it in whole-group instruction",null,null,null,null,4,{"$f":"IF(F13=TRUE,G13,\"\")","v":""},"June"]
[null,"5. Lessons that I plan to teach later on this year require mastery of this skill or content",null,null,null,null,3,"","July"]
[null,"6. This skill or content is necessary for future lessons and only taught once this year ",null,null,null,null,4,""]
[null,"7. Every single teacher in my grade intends to teach this skill or content",null,null,null,null,2,""]
[null,"8. I can remediate prior essential skills or content (that at least 80% of students have not mastered) in this lesson",null,null,null,null,3,""]
[null,"Criterion 3: Promotes Lifelong Success "]
[null,"9. Students will use this skill or content knowledge at least once a week in their adult life",null,null,null,null,5,{"$f":"IF(F19=TRUE,G19,\"\")","v":""}]
[null,"10. This skill or content will improve at least 2 of the following: collaboration, critical thinking, communication, or creativity",null,null,null,null,2,""]
[null,null,null,null,null,"Total",null,{"$f":"SUM(H9,H11:H17,H19:H20)","v":0}]
[]
[]
[]
[]
[]
[]
[]
[]
[]
[]
[]
[]
[]
[]
[]
[]
[]
[]
[]
[]
[]
[]
[]
[]
[]
[]
[]
[]
[]
[]
[]
[]
[]
[]
[]
[]
[]
[]
[]
[]
[]
[]
[]
[]
[]
[]
[]
[]
[]
[]
[]
[]
[]
[]
[]
[]
[]
[]
[]
[]
[]
[]
[]
[]
[]
[]
[]
[]
[]
[]
[]
[]
[]
[]
[]
[]
[]
[]
[]
[]
[]
[]
[]
[]
[]
[]
[]
[]
[]
[null,"2020-10-01","Review: Length"]
[null,"2020-10-02","Volume"]
[null,"2020-10-03","Weight"]
[null,"2020-10-04","Exploring Weight and Volume"]
[null,"2020-10-05","Capacity"]
[null,"2020-10-06","The Mean and the Median"]
[null,"2020-10-07","Calculating the Mean"]
[null,"2020-10-08","Calculator Memory"]
[null,"2020-10-09","Frequency Distributions"]
[null,"2020-10-10","Coordinate Grids"]
[null,"2020-11-01","The Length-of-Day Project Revisited"]
[null,"2020-11-02","National High/Low Temperatures Summaries"]
[null,"2020-11-03","Spinner Experiments"]
[null,"2020-11-04","Designing Spinners"]
[null,"2020-11-05","Using Data to Predict Outcomes"]
[null,"2020-11-06","Progress Check 11"]

{"sheet":"Report","index":2,"n_rows":23,"n_cols":11,"rows_kept":23,"cut":false,"hidden":false,"merged":[[2,2,2,3]]}
[]
[]
[]
[]
[]
[]
[null,"Month","Number","Description","Score","Remove?"]
[null,null,null,null,null,false]
[null,null,null,null,null,false]
[null,null,null,null,null,false]
[null,null,null,null,null,false,null,null,null,false,false]
[null,null,null,null,null,false]
[null,null,null,null,null,false]
[null,null,null,null,null,false]
[null,null,null,null,null,false]
[null,null,null,null,null,false]
[null,null,null,null,null,false]
[null,null,null,null,null,false]
[null,null,null,null,null,false]
[null,null,null,null,null,false]
[null,null,null,null,null,false]
[null,null,null,null,null,false]
[null,null,null,null,null,false]

{"sheet":"Sheet4","index":3,"n_rows":18,"n_cols":8,"rows_kept":18,"cut":false,"hidden":true,"merged":[]}
["RAW DATA"]
[{"$f":"COUNTA('Curricula Inputs'!B6:B236)","v":0},{"$f":"IF(IFERROR((COUNTIF(Report!F8:F399,\"TRUE\")/(COUNTA('Curricula Inputs'!B6:B236)*C4)),0)>1,1,IFERROR((COUNTIF(Report!F8:F399,\"TRUE\")/(COUNTA('Curricula Inputs'!B6:B236)*C4)),0))","v":0},{"$f":"1-B2","v":1}]
[{"$f":"IFERROR((COUNT(Report!E:E)/COUNTA('Curricula Inputs'!B6:B236)),0)","v":0}]
[{"$f":"IFERROR((COUNTIF(Report!$E$8:$E$399,\"<15\")/COUNTA(Report!$E$8:$E$399)),0)","v":0},{"$f":"B9","v":1100},{"$f":"(B4/1000)-1","v":0.10000000000000009},{"$f":"1-C4","v":0.89999999999999991},null,"# selected to cut","how many more?","tied to checkbox"]
[{"$f":"IFERROR((COUNTIF(Report!$E$8:$E$399,\">14\")/COUNTA(Report!$E$8:$E$399)),0)","v":0},null,{"$f":"C4","v":0.10000000000000009},null,false,{"$f":"SUM(COUNTIFS(Report!B:B,{\"Sept\",\"Aug\"},Report!F:F,\"TRUE\"))","v":0},{"$f":"ROUNDUP(IF(((Sheet4!A2*Sheet4!C4)/10)-F5>0,((Sheet4!A2*Sheet4!C4)/10)-F5,0),0)","v":0},{"$f":"IF(E5=TRUE,0,G5)","v":0}]
[null,{"$f":"ROUNDUP(C4*A2-B7,0)","v":0}]
[null,{"$f":"COUNTIF(Report!F:F,\"TRUE\")","v":0},{"$f":"IFERROR(ROUNDUP(COUNTIF(Report!F8:F399,\"TRUE\")/A2,2),0)","v":0}]
[null,{"$f":"(COUNT(Report!E8:E399))-B7","v":0},null,false,"Oct",{"$f":"COUNTIFS(Report!B:B,\"Oct\",Report!F:F,\"TRUE\")","v":0},{"$f":"ROUNDUP(IF(((Sheet4!A2*Sheet4!C4)/10)-F8>0,((Sheet4!A2*Sheet4!C4)/10)-F8,0),0)","v":0},{"$f":"IF(D8=TRUE,0,G8)","v":0}]
[null,1100,null,null,null,null,null,{"$f":"IF(D9=TRUE,0,G9)","v":0}]
[null,{"$f":"ROUNDUP(C4+1,1)","v":1.1000000000000001},null,null,null,null,null,0]
[null,null,null,false,"Nov",{"$f":"COUNTIFS(Report!B:B,\"Nov\",Report!F:F,\"TRUE\")","v":0},{"$f":"ROUNDUP(IF(((Sheet4!$A$2*Sheet4!$C$4)/10)-F11>0,((Sheet4!$A$2*Sheet4!$C$4)/10)-F11,0),0)","v":0},0]
[null,null,null,false,"Dec",{"$f":"COUNTIFS(Report!B:B,\"Dec\",Report!F:F,\"TRUE\")","v":0},{"$f":"ROUNDUP(IF(((Sheet4!$A$2*Sheet4!$C$4)/10)-F12>0,((Sheet4!$A$2*Sheet4!$C$4)/10)-F12,0),0)","v":0},0]
[null,1,null,false,"Jan",{"$f":"COUNTIFS(Report!B:B,\"Jan\",Report!F:F,\"TRUE\")","v":0},{"$f":"ROUNDUP(IF(((Sheet4!$A$2*Sheet4!$C$4)/10)-F13>0,((Sheet4!$A$2*Sheet4!$C$4)/10)-F13,0),0)","v":0},0]
[null,null,null,null,"Feb",{"$f":"COUNTIFS(Report!B:B,\"Feb\",Report!F:F,\"TRUE\")","v":0},{"$f":"ROUNDUP(IF(((Sheet4!$A$2*Sheet4!$C$4)/10)-F14>0,((Sheet4!$A$2*Sheet4!$C$4)/10)-F14,0),0)","v":0},0]
[null,null,null,null,"March",{"$f":"COUNTIFS(Report!B:B,\"March\",Report!F:F,\"TRUE\")","v":0},{"$f":"ROUNDUP(IF(((Sheet4!$A$2*Sheet4!$C$4)/10)-F15>0,((Sheet4!$A$2*Sheet4!$C$4)/10)-F15,0),0)","v":0},0]
[null,null,null,null,"April",{"$f":"COUNTIFS(Report!B:B,\"April\",Report!F:F,\"TRUE\")","v":0},{"$f":"ROUNDUP(IF(((Sheet4!$A$2*Sheet4!$C$4)/10)-F16>0,((Sheet4!$A$2*Sheet4!$C$4)/10)-F16,0),0)","v":0},0]
[null,null,null,false,"May",{"$f":"COUNTIFS(Report!B:B,\"May\",Report!F:F,\"TRUE\")","v":0},{"$f":"ROUNDUP(IF(((Sheet4!$A$2*Sheet4!$C$4)/10)-F17>0,((Sheet4!$A$2*Sheet4!$C$4)/10)-F17,0),0)","v":0},0]
[null,null,null,false,"June/July",{"$f":"SUM(COUNTIFS(Report!B:B,{\"June\",\"July\"},Report!F:F,\"TRUE\"))","v":0},{"$f":"ROUNDDOWN(IF(((Sheet4!$A$2*Sheet4!$C$4)/10)-F18>0,((Sheet4!$A$2*Sheet4!$C$4)/10)-F18,0),0)","v":0},0]